{"text_format":"1","workbook":"xlsx","n_sheets":4,"sheets":["Dépôts et déposants","Thématique","Répartition typologique","Feuil1"],"not_rendered":{"charts":0,"images":0,"macros":0,"external_links":0,"defined_names":4,"comments":0,"pivot_tables":0},"unopened":[],"bounds":{"document_bytes":16777216,"sheet_cells":100000,"rows_first":2000,"rows_last":500,"rows_between":2000,"halvings":0,"cell_chars":16384,"cell_head_chars":4096},"cells_cut":0,"cells_raw":0,"read":"whole","date_system":"1900"}

{"sheet":"Dépôts et déposants","index":0,"n_rows":164,"n_cols":12,"rows_kept":164,"cut":false,"hidden":false,"merged":[[31,9,31,11],[31,6,31,8],[31,3,31,5],[8,7,8,9],[8,4,8,6]]}
[]
["Nombre de documents cartographiques reçus par dépôt légal"]
["DL Cartes et plans",2016,2017,2018]
[null,2294,2263,1878]
[]
["Source : Entrées dépôt légal"]
[]
["Nombre des dépôts et déposants par catégorie de déposants"]
["DL Cartes et plans",2016,null,null,2017,null,null,2018]
["Catégorie déposant","Nb déposants","Nb nouveaux déposants","Nb dépôts","Nb déposants","Nb nouveaux déposants","Nb dépôts","Nb déposants","Nb nouveaux déposants","Nb dépôts"]
["Administration centrale",2,0,2,2,1,2]
["Associations et assimilés",8,3,1019,8,3,734,16,10,638]
["Auteurs auto-édités",5,2,8,2,0,2,4,1,11]
["Club de livres",1,0,7,2,0,5,null,null,4]
["Collectivité locale",16,13,54,38,26,102,32,17,73]
["Collectivités publiques",11,2,444,23,8,854,15,6,591]
["Déposant PO"]
["Editeurs étrangers",2,0,83,2,0,49,1,null,43]
["Editeurs professionnels",84,21,646,106,29,441,95,24,446]
["Diffuseur",null,null,null,null,null,null,1,1,7]
["Importateur",null,null,null,null,null,null,1]
["Imprimeurs professionnels"]
["Pas de catégorie déposant",11,9,18,19,13,64,11,6,12]
["Personne physique",6,4,12,6,5,6,11,6,13]
["Prestataire de service"]
["Recherche"]
["Sociétés et assimilés",1,1,1,2,2,3]
["Total",{"$f":"SUM(B11:B27)","v":147},55,2294,210,87,2262,189,71,1878]
["Source : Entrées dépôt légal"]
[]
["Nombre des dépôts et déposants par département et région de déposants"]
["DL Cartes et plans",null,null,2016,null,null,2017,null,null,2018]
["France","Région","Département déposant (code)","Nb déposants","Nb nvx déposants","Nb dépôts","Nb déposants","Nb nvx déposants","Nb dépôts","Nb déposants","Nb nvx déposants","Nb dépôts"]
[null,"Département inconnu",null,0,0,0,0,0,0]
[null,"Auvergne - Rhône Alpes",1,0,0,0,0,0,0,null,null,1]
[null,null,3,0,0,0,0,0,0]
[null,null,7,0,0,0,0,0,0]
[null,null,15,0,0,0,0,0,0]
[null,null,26,3,1,8,0,0,0,null,null,2]
[null,null,38,3,1,31,4,1,36,null,null,25]
[null,null,42,0,0,0,0,0,0,null,null,1]
[null,null,43,0,0,0,1,1,1,null,null,1]
[null,null,63,3,2,34,5,2,33,null,null,39]
[null,null,69,3,0,27,5,3,28,null,null,22]
[null,null,73,2,1,3,0,0,0]
[null,null,74,2,1,2,3,1,5,null,null,3]
[null,"Bourgogne - Franche-Comté",21,3,2,4,5,3,5,null,null,3]
[null,null,25,1,0,3,3,1,5,null,null,2]
[null,null,39,0,0,0,1,1,1,null,null,3]
[null,null,58,0,0,0,1,1,2]
[null,null,70,0,0,0,1,0,7,null,null,1]
[null,null,71,1,1,1,1,1,1,null,null,3]
[null,null,89,0,0,0,0,0,0]
[null,null,90,0,0,0,0,0,0]
[null,"Bretagne",22,0,0,0,0,0,0]
[null,null,29,4,2,154,3,0,206,null,null,213]
[null,null,35,3,1,24,3,2,25,null,null,10]
[null,null,56,1,1,38,2,1,21,null,null,15]
[null,"Centre - Val-de-Loire",18,0,0,0,0,0,0]
[null,null,28,1,0,1,2,2,28,null,null,13]
[null,null,36,0,0,0,1,0,1]
[null,null,37,0,0,0,1,0,10,null,null,42]
[null,null,41,0,0,0,1,1,1]
[null,null,45,1,0,1,4,3,5,null,null,2]
[null,"Corse",20,2,1,5,1,0,2,null,null,9]
[null,"Grand-Est",8,0,0,0,0,0,0]
[null,null,10,1,0,1,0,0,0,null,null,1]
[null,null,51,0,0,0,0,0,0]
[null,null,52,0,0,0,1,0,1]
[null,null,54,0,0,0,0,0,0]
[null,null,55,0,0,0,1,0,3]
[null,null,57,1,0,2,0,0,0]
[null,null,67,3,1,3,2,1,3,null,null,8]
[null,null,68,0,0,0,3,2,5]
[null,null,88,1,1,1,0,0,0,null,null,2]
[null,"Hauts-de-France",2,0,0,0,2,2,2,null,null,1]
[null,null,59,4,2,14,9,6,17,null,null,1]
[null,null,60,0,0,0,0,0,0,null,null,1]
[null,null,62,3,3,3,2,0,2,null,null,2]
[null,null,80,0,0,0,2,1,3,null,null,7]
[null,"Ile-de-France",75,36,7,1155,50,16,900,null,null,715]
[null,null,77,0,0,0,1,0,1,null,null,1]
[null,null,78,3,2,4,2,1,2,null,null,7]
[null,null,91,0,0,0,3,1,10,null,null,2]
[null,null,92,5,0,272,7,2,159,null,null,161]
[null,null,93,6,3,110,2,0,3,null,null,59]
[null,null,94,3,1,196,2,2,490,null,null,358]
[null,null,95,0,0,0,1,0,2]
[null,"Normandie",14,0,0,0,2,1,2,null,null,2]
[null,null,27,1,0,1,0,0,0]
[null,null,50,0,0,0,0,0,0,null,null,1]
[null,null,61,1,1,1,1,1,1]
[null,null,76,1,1,1,2,0,4]
[null,"Nouvelle-Aquitaine",16,0,0,0,1,1,1]
[null,null,17,0,0,0,1,1,1,null,null,2]
[null,null,19,0,0,0,0,0,0]
[null,null,23,0,0,0,0,0,0]
[null,null,24,0,0,0,0,0,0]
[null,null,33,5,0,43,5,2,42,null,null,25]
[null,null,40,0,0,0,0,0,0]
[null,null,47,0,0,0,1,0,41]
[null,null,64,3,2,4,3,2,4,null,null,5]
[null,null,79,2,1,2,1,0,3,null,null,1]
[null,null,86,0,0,0,0,0,0]
[null,null,87,0,0,0,1,0,1,null,null,4]
[null,"Occitanie",9,1,0,1,0,0,0]
[null,null,11,0,0,0,0,0,0]
[null,null,12,1,1,1,2,1,2,null,null,1]
[null,null,30,0,0,0,0,0,0]
[null,null,31,5,0,9,10,2,16,null,null,4]
[null,null,32,0,0,0,0,0,0]
[null,null,34,5,4,10,4,0,4,null,null,4]
[null,null,46,1,0,1,1,1,1,null,null,1]
[null,null,48,0,0,0,0,0,0]
[null,null,65,1,1,1,0,0,0,null,null,1]
[null,null,66,1,1,2,3,2,3]
[null,null,81,2,2,5,1,0,1,null,null,3]
[null,null,82,0,0,0,1,0,2]
[null,"Outre-mer",970,0,0,0,0,0,0]
[null,null,971,0,0,0,0,0,0]
[null,null,972,2,2,2,0,0,0]
[null,null,973,0,0,0,1,1,1]
[null,null,974,1,0,4,2,0,2,null,null,3]
[null,null,975,0,0,0,0,0,0]
[null,null,976,0,0,0,1,0,1]
[null,null,987,0,0,0,0,0,0]
[null,null,988,0,0,0,0,0,0]
[null,"Pays de la Loire",44,3,2,6,2,1,4,null,null,12]
[null,null,49,1,0,1,1,0,1,null,null,1]
[null,null,53,0,0,0,1,0,12,null,null,3]
[null,null,72,0,0,0,2,1,3,null,null,2]
[null,null,85,1,0,6,3,1,8,null,null,7]
[null,"Provence-Alpes-Côte d'Azur",4,0,0,0,1,0,1,null,null,2]
[null,null,5,0,0,0,1,1,1,null,null,1]
[null,null,6,2,1,5,5,0,7,null,null,4]
[null,null,13,3,1,4,5,0,5,null,null,2]
[null,null,83,0,0,0,0,0,0,null,null,3]
[null,null,84,0,0,0,0,0,0,null,null,1]
["Total France",null,null,{"$f":"SUM(D34:D138)","v":142},{"$f":"SUM(E34:E138)","v":54},{"$f":"SUM(F34:F138)","v":2207},{"$f":"SUM(G34:G138)","v":203},77,2201,null,null,{"$f":"SUM(L35:L138)","v":1831}]
["Hors France","Belgique",null,1,0,2,0,0,0,null,null,2]
[null,"Finlande",null,1,1,1,0,0,0]
[null,"Monaco",null,0,0,0,1,0,1,null,null,1]
[null,"Suisse",null,1,0,1,1,0,1]
[null,"Royaume-Uni",null,null,null,null,null,null,null,null,null,1]
[null,"Pologne",null,1,0,82,1,0,48,null,null,43]
["Total hors France",null,null,{"$f":"SUM(D140:D145)","v":4},1,86,3,0,50,null,null,{"$f":"SUM(L140:L145)","v":47}]
["TOTAL GENERAL",null,null,{"$f":"SUM(D139,D146)","v":146},55,2293,206,77,2251,null,null,1878]
[null,null,null,"Source : Entrées dépôt légal"]
[]
[]
["Liste des 10 principaux déposants par année de dépôt"]
["DL Cartes et plans",2016,null,"DL Cartes et plans",2017,null,"DL Cartes et plans",2018]
["Fédération Française de Course d'Orientation",966,null,"Fédération Française de Course d'Orientation",672,null,"Fédération Française de Course d'Orientation",575]
["Manufacture française des pneumatiques Michelin",265,null,"Institut national de l'information géographique et forestière",488,null,"Institut national de l'information géographique et forestière",350]
["Institut national de l'information géographique et forestière",194,null,"Service hydrographique et océanographique de la marine",201,null,"Service hydrographique et océanographique de la marine",211]
["Service hydrographique et océanographique de la marine",151,null,"Manufacture française des pneumatiques Michelin",125,null,"Manufacture française des pneumatiques Michelin",136]
["Blay Foldex",100,null,"Régie autonome des transports parisiens",54,null,"Blay Foldex",54]
["ExpressMap",82,null,"Fédération française de la randonnée pédestre",52,null,"Fédération française de la randonnée pédestre",47]
["Régie autonome des transports parisiens",57,null,"ExpressMap",48,null,"ExpressMap",43]
["Fédération française de la randonnée pédestre",47,null,"Ligue d'Aquitaine de Course d'Orientation (FFCO)",41,null,"Chamina édition",26]
["Comité départemental du Morbihan de course d'orientation",38,null,"Service de l'information aéronautique",37,null,"Résomédia",22]
["Service de l'information aéronautique",34,null,"Glénat  (Editions )",31,null,"Glénat  (Editions )",21]
["Total",{"$f":"SUM(B153:B162)","v":1934},null,"Total",{"$f":"SUM(E153:E162)","v":1749},null,"Total",{"$f":"SUM(H153:H162)","v":1485}]
["Source : Entrées dépôt légal"]

{"sheet":"Thématique","index":1,"n_rows":60,"n_cols":6,"rows_kept":60,"cut":false,"hidden":false,"merged":[]}
[]
["Nombre de documents cartographiques signalés dans la bibliographie nationale - répartition par classe thématique"]
["DL Cartes et plans",null,2016,null,2017,2018]
["Ciel",null,5,null,7,11]
["Mers",null,158,null,199,204]
["Monde",null,44,null,65,63]
[null,"Entier",41,null,63,61]
[null,"Parties",3,null,2,2]
["Arctique et Antarctique",null,"-",null,"-","-"]
["Afrique",null,15,null,131,21]
[null,"Entière","-",null,5,1]
[null,"Parties",5,null,0,2]
[null,"Pays/Territoires A-L",1,null,1,2]
[null,"Pays/Territoires M-Z",9,null,125,16]
["Amérique",null,25,null,19,18]
[null,"Entière","-",null,0,"-"]
[null,"Parties",4,null,0,2]
[null,"Pays/Territoires A-G",19,null,19,13]
[null,"Pays/Territoires H-Z",2,null,0,3]
["Asie",null,10,null,15,13]
[null,"Entière",1,null,2,"-"]
[null,"Parties",1,null,1,"-"]
[null,"Pays/Territoires A-J",3,null,5,10]
[null,"Pays/Territoires K-Z",5,null,7,3]
["Europe (hors France)",null,177,null,104,{"$f":"SUM(F26:F29)","v":113}]
[null,"Entière",5,null,5,5]
[null,"Parties",41,null,16,28]
[null,"Pays/Territoires A-L",91,null,61,51]
[null,"Pays/Territoires M-Z",40,null,22,29]
["Océanie",null,3,null,1,3]
[null,"Entière","-",null,0,0]
[null,"Parties",1,null,0,2]
[null,"Pays/Territoires",2,null,1,1]
["France",null,1137,"Nouvelles régions (créées en 2016)",1130,{"$f":"SUM(F35:F49)","v":1210}]
[null,"Entière",289,null,388,401]
[null,"Parties",55,null,45,32]
[null,"Alsace",14,"Auvergne- Rhône-Alpes",162,180]
[null,"Aquitaine",51,"Bourgogne - Franche-Comté",44,49]
[null,"Auvergne",10,"Bretagne",55,62]
[null,"Basse-Normandie",23,"Centre - Val de Loire",11,35]
[null,"Bourgogne",32,"Corse",3,17]
[null,"Bretagne",48,"Grand Est",49,62]
[null,"Centre",8,"Hauts-de-France",11,17]
[null,"Champagne-Ardenne",3,"Île-de-France",112,68]
[null,"Corse",12,"Normandie",16,37]
[null,"Franche-Comté",9,"Nouvelle-Aquitaine",64,69]
[null,"Haute-Normandie",16,"Occitanie",78,101]
[null,"Île-de-France",131,"Pays-de-la-Loire",30,32]
[null,"Languedoc-Roussillon",30,"Provence-Alpes-Côte d'Azur",62,48]
[null,"Limousin",6]
[null,"Lorraine",26]
[null,"Midi-Pyrénées",77]
[null,"Nord-Pas-de-Calais",11]
[null,"Pays-de-la-Loire",14]
[null,"Picardie",11]
[null,"Poitou-Charentes",30]
[null,"Provence-Alpes-CA",65]
[null,"Rhône-Alpes",166]
["Total",null,{"$f":"SUM(C34,C30,C25,C20,C15,C10,C9,C6,C5,C4)","v":1574},null,1671,1656]
["Source : Bibliographie nationale française - Documents cartographiques"]

{"sheet":"Répartition typologique","index":2,"n_rows":54,"n_cols":4,"rows_kept":54,"cut":false,"hidden":false,"merged":[]}
[]
["Nombre de documents par type de document"]
["DL Cartes et plans",2016,2017,2018]
["atlas (en feuilles)",null,6,5]
["atlas (relié ou broché)",24,128,107]
["atlas céleste",2,4,2]
["atlas historique",3,16,8]
["atlas national",null,2]
["atlas nautique",null,1]
["atlas pour enfants",1,21,16]
["atlas régional",5,3,2]
["atlas routier",16,8,21]
["atlas scolaire",null,3,1]
["atlas thématique",36,92,85]
["atlas universel",1,1,2]
["carte",25,33,61]
["carte aéronautique",28,50,25]
["carte céleste ",2,1,8]
["carte en braille",1]
["carte marine",124,195,198]
["carte murale",5,8,1]
["carte nautique",null,45,2]
["carte ou plan en relief",5,2,3]
["carte routière",227,156,219]
["carte scolaire",null,null,1]
["carte thématique",97,34,21]
["carte topographique",170,363,245]
["curiosité cartographique",null,31,16]
["fac-simile",null,1]
["fond de carte"]
["globe",null,1,5]
["guide",208,226,288]
["image de télédétection"]
["jeu géographique",9,18,12]
["légende cartographique",1]
["matériel didactique",null,null,2]
["ouvrage pour la jeunesse",2,22,16]
["panorama",null,null,1]
["photocarte, photoplan"]
["photographie aérienne",null,null,1]
["plan",918,360,671]
["plan de ville (feuille)",158,104,119]
["plan de ville (relié, broché)",24,19,13]
["plan ou dessin de bâtiment"]
["plan parcellaire",null,1]
["plan perspectif"]
["répertoire géographique",13]
["spatiocarte"]
["tableau d’assemblage",3,2,2]
["tableau, graphique, diagramme",null,1]
["vue",null,1]
["Total",{"$f":"SUM(B4:B51)","v":2108},{"$f":"SUM(C4:C51)","v":1959},{"$f":"SUM(D4:D51)","v":2179}]
["Source : Bibliographie nationale française - Documents cartographiques"]
["NB. Un document peut avoir plusieurs typologies (ex : plan de ville et jeu géographique), ce qui explique que le chiffre total excède le nombre d'entrées."]

{"sheet":"Feuil1","index":3,"n_rows":0,"n_cols":0,"rows_kept":0,"cut":false,"hidden":false,"merged":[]}